fUSD/lending_fUSD_20260327
["ID","MTS","AMOUNT","RATE_DAILY","PERIOD"]
[418933296,1774579843625,-151.0,0.00013581,2]
[418933298,1774579843634,-151.0,0.00013581,2]
[418933300,1774579843643,-151.0,0.00013581,2]
[418933302,1774579843653,-151.0,0.00013581,2]
[418933304,1774579843662,-188.628932,0.00013581,2]
[418933306,1774579843672,-151.0,0.00013581,2]
[418933308,1774579843680,-151.0,0.00013581,2]
[418933310,1774579843690,-153.817845,0.00013581,2]
[418933311,1774579843699,-2917.01,0.00013684,2]
[418933313,1774579843710,-156.604483,0.00013699,2]
[418933314,1774579843720,-151.0,0.00013699,2]
[418933315,1774579843729,-151.0,0.00013699,2]
[418933316,1774579843739,-151.0,0.00013699,2]
[418933317,1774579843749,-151.0,0.00013699,2]
[418933318,1774579843758,-151.0,0.00013699,2]
[418933321,1774579843768,-153.752602,0.00013699,2]
[418933324,1774579843777,-274.22301,0.00013699,2]
[418933325,1774579843787,-274.22301,0.00013699,2]
[418933326,1774579843796,-274.22301,0.00013699,2]
[418933327,1774579843805,-274.22301,0.00013699,2]
[418933328,1774579843814,-274.22301,0.00013699,2]
[418933329,1774579843824,-274.22301,0.00013699,2]
[418933330,1774579843833,-274.22301,0.00013699,2]
[418933331,1774579843843,-274.22301,0.00013699,2]
[418933332,1774579843852,-468.297215,0.00013699,2]
[418933333,1774579843862,-468.297215,0.00013699,2]
[418933334,1774579843871,-468.297215,0.00013699,2]
[418933335,1774579843881,-468.297215,0.00013699,2]
[418933336,1774579843891,-151.0,0.00013699,2]
[418933337,1774579843901,-1193.796162,0.00013699,2]
[418933338,1774579843910,-1193.796162,0.00013699,2]
[418933339,1774579843919,-1193.796162,0.00013699,2]
[418933340,1774579843929,-1193.796162,0.00013699,2]
[418933341,1774579843939,-151.0,0.00013699,2]
[418933342,1774579843948,-151.0,0.00013699,2]
[418933343,1774579843958,-274.22301,0.00013699,2]
[418933344,1774579843968,-274.22301,0.00013699,2]
[418933345,1774579843977,-274.22301,0.00013699,2]
[418933346,1774579843987,-274.22301,0.00013699,2]
[418933347,1774579843996,-5000.0,0.00013699,2]
[418933348,1774579844006,-5000.0,0.00013699,2]
[418933349,1774579844016,-5000.0,0.00013699,2]
[418933350,1774579844026,-3279.375097,0.00013699,2]
[418933351,1774579844036,-151.0,0.00013699,2]
[418933352,1774579844045,-2000.0,0.000137,2]
[418933353,1774579844056,-151.0,0.000137,2]
[418933354,1774579844066,-207.23389896,0.00013703,2]
[418933355,1774579844075,-151.0,0.00013733,2]
[418933356,1774579844084,-151.0,0.00013733,2]
[418933357,1774579844094,-614.677955,0.00013733,2]
[418933358,1774579844103,-614.677955,0.00013733,2]
[418933359,1774579844112,-614.677955,0.00013733,2]
[418933360,1774579844121,-614.677955,0.00013733,2]
[418933361,1774579844131,-468.297215,0.00013733,2]
[418933362,1774579844140,-468.297215,0.00013733,2]
[418933363,1774579844149,-468.297215,0.00013733,2]
[418933364,1774579844159,-468.297215,0.00013733,2]
[418933365,1774579844168,-151.0,0.00013733,2]
[418933366,1774579844177,-1193.796162,0.00013733,2]
[418933367,1774579844186,-1193.796162,0.00013733,2]
[418933368,1774579844196,-1193.796162,0.00013733,2]
[418933369,1774579844205,-1193.796162,0.00013733,2]
[418933370,1774579844215,-151.0,0.00013733,2]
[418933371,1774579844224,-151.0,0.00013733,2]
[418933372,1774579844234,-274.22301,0.00013733,2]
[418933373,1774579844244,-274.22301,0.00013733,2]
[418933374,1774579844253,-274.22301,0.00013733,2]
[418933375,1774579844263,-274.22301,0.00013733,2]
[418933376,1774579844273,-151.0,0.00013733,2]
[418933377,1774579844283,-3240.0,0.00013733,2]
[418933378,1774579844292,-256.78689576,0.0001381,2]
[418933379,1774579844302,-166.66,0.00013843,2]
[418933380,1774579844311,-1000.0,0.0001391,2]
[418933381,1774579844321,-1000.0,0.0001391,2]
[418933382,1774579844330,-1000.0,0.0001391,2]
[418933383,1774579844341,-151.0,0.0001391,2]
[418933384,1774579844352,-151.0,0.0001391,2]
[418933385,1774579844362,-151.0,0.0001391,2]
[418933386,1774579844371,-215.804043,0.0001391,2]
[418933387,1774579844381,-151.0,0.0001391,2]
[418933388,1774579844390,-473.7267222,0.00013998,2]
[418933389,1774579844399,-201.77417719,0.00013998,2]
[418933390,1774579844409,-1193.796162,0.00013998,2]
[418933391,1774579844419,-1193.796162,0.00013998,2]
[418933392,1774579844428,-1193.796162,0.00013998,2]
[418933393,1774579844437,-1193.796162,0.00013998,2]
[418933394,1774579844447,-151.0,0.00013998,2]
[418933395,1774579844456,-151.0,0.00013998,2]
[418933396,1774579844466,-274.22301,0.00013998,2]
[418933397,1774579844475,-274.22301,0.00013998,2]
[418933398,1774579844484,-274.22301,0.00013998,2]
[418933399,1774579844494,-274.223006,0.00013998,2]
[418933400,1774579844503,-500.0,0.00014005,2]
[418933401,1774579844515,-336.74955287,0.00014005,2]
[418933402,1774579844524,-500.0,0.00014005,2]
[418933403,1774579844535,-500.94188563,0.00014005,2]
[418933404,1774579844545,-500.0,0.00014005,2]
[418933405,1774579844554,-402.65002401,0.00014005,2]
[418933406,1774579844564,-265.80616744,0.00014005,2]
[418933407,1774579844573,-500.0,0.00014005,2]
[418933408,1774579844582,-500.0,0.00014005,2]
[418933409,1774579844591,-500.0,0.00014005,2]
[418933410,1774579844601,-500.8617481,0.00014005,2]
[418933411,1774579844612,-500.0,0.00014005,2]
[418933412,1774579844622,-500.0,0.00014005,2]
[418933413,1774579844633,-500.0,0.00014005,2]
[418933414,1774579844645,-425.09447877,0.00014005,2]
[418933415,1774579844655,-500.0,0.00014005,2]
[418933416,1774579844667,-500.0,0.00014005,2]
[418933417,1774579844677,-500.0,0.00014005,2]
[418933418,1774579844688,-500.0,0.00014005,2]
[418933419,1774579844698,-500.0,0.00014005,2]
[418933420,1774579844707,-500.0,0.00014005,2]
[418933421,1774579844718,-500.0,0.00014005,2]
[418933422,1774579844727,-500.0,0.00014005,2]
[418933423,1774579844738,-500.0,0.00014005,2]
[418933424,1774579844748,-500.0,0.00014005,2]
[418933425,1774579844758,-500.0,0.00014005,2]
[418933426,1774579844767,-500.0,0.00014005,2]
[418933427,1774579844776,-500.0,0.00014005,2]
[418933428,1774579844786,-500.0,0.00014005,2]
[418933429,1774579844795,-500.0,0.00014005,2]
[418933430,1774579844804,-500.0,0.00014005,2]
[418933431,1774579844813,-500.0,0.00014005,2]
[418933432,1774579844822,-500.0,0.00014005,2]
[418933433,1774579844833,-500.0,0.00014005,2]
[418933434,1774579844845,-500.0,0.00014005,2]
[418933435,1774579844855,-500.0,0.00014005,2]
[418933436,1774579844865,-500.0,0.00014005,2]
[418933437,1774579844874,-500.0,0.00014005,2]
[418933438,1774579844883,-500.0,0.00014005,2]
[418933439,1774579844892,-500.0,0.00014005,2]
[418933440,1774579844902,-500.0,0.00014005,2]
[418933441,1774579844912,-500.0,0.00014005,2]
[418933442,1774579844922,-500.0,0.00014005,2]
[418933443,1774579844930,-500.0,0.00014005,2]
[418933444,1774579844940,-500.0,0.00014005,2]
[418933445,1774579844950,-623.21499613,0.00014005,2]
[418933446,1774579844959,-500.0,0.00014005,2]
[418933447,1774579844969,-500.0,0.00014005,2]
[418933448,1774579844979,-500.0,0.00014005,2]
[418933449,1774579844990,-151.0,0.00014006,2]
[418933450,1774579845001,-151.0,0.00014006,2]
[418933451,1774579845011,-151.0,0.00014006,2]
[418933452,1774579845021,-151.0,0.00014006,2]
[418933453,1774579845030,-151.0,0.00014006,2]
[418933454,1774579845040,-151.0,0.00014006,2]
[418933455,1774579845049,-151.0,0.00014006,2]
[418933456,1774579845058,-614.677955,0.00014006,2]
[418933457,1774579845069,-614.677955,0.00014006,2]
[418933458,1774579845078,-614.677955,0.00014006,2]
[418933459,1774579845088,-614.677955,0.00014006,2]
[418933460,1774579845097,-468.297215,0.00014006,2]
[418933461,1774579845107,-468.297215,0.00014006,2]
[418933462,1774579845116,-468.297215,0.00014006,2]
[418933463,1774579845126,-468.297215,0.00014006,2]
[418933464,1774579845136,-468.297215,0.00014006,2]
[418933465,1774579845146,-468.297215,0.00014006,2]
[418933466,1774579845155,-468.297215,0.00014006,2]
[418933467,1774579845165,-468.297211,0.00014006,2]
[418933468,1774579845175,-151.0,0.00014006,2]
[418933469,1774579845184,-151.0,0.00014006,2]
[418933470,1774579845193,-1193.796162,0.00014006,2]
[418933471,1774579845202,-1193.796162,0.00014006,2]
[418933472,1774579845211,-1193.796162,0.00014006,2]
[418933473,1774579845220,-1193.796156,0.00014006,2]
[418933474,1774579845229,-224.07,0.00014134,2]
[418933475,1774579845238,-166.66,0.00014135,2]
[418933476,1774579845248,-185.12189244,0.00014222,2]
[418933477,1774579845257,-1349.396,0.00014222,2]
[418933478,1774579845266,-254.395755,0.000144,2]
[418933479,1774579845278,-250.282493,0.000144,2]
[418933480,1774579845287,-614.677955,0.000144,2]
[418933481,1774579845296,-614.677955,0.000144,2]
[418933482,1774579845305,-614.677955,0.000144,2]
[418933483,1774579845315,-614.677955,0.000144,2]
[418933484,1774579845324,-166.66,0.00014426,2]
[418933485,1774579845332,-150.57279028,0.00014454,2]
[418933486,1774579845341,-189.79,0.00014521,2]
[418933487,1774579845350,-351.926981,0.00014525,2]
[418933488,1774579845359,-9069.44374593,0.0001469,2]
[418933489,1774579845368,-5264.9464,0.0001469,2]
[418933490,1774579845378,-166.66,0.00014718,2]
[418933491,1774579845387,-1043.26295413,0.0001473,2]
[418933492,1774579845396,-500.0,0.00014773,2]
[418933493,1774579845405,-500.0,0.00014773,2]
[418933494,1774579845414,-218.31194635,0.00014773,2]
[418933495,1774579845423,-500.0,0.00014773,2]
[418933496,1774579845432,-614.677955,0.00014778,2]
[418933497,1774579845441,-614.677955,0.00014778,2]
[418933498,1774579845450,-614.677955,0.00014778,2]
[418933499,1774579845460,-614.677948,0.00014778,2]
[418933500,1774579845468,-16015.524,0.00014778,2]
[418933501,1774579845478,-2500.0,0.00014778,2]
[418933502,1774579845487,-151.0,0.0001479,2]
[418933503,1774579845496,-153.471898,0.0001479,2]
[418933504,1774579845505,-151.0,0.0001479,2]
[418933505,1774579845514,-151.0,0.0001479,2]
[418933506,1774579845524,-151.0,0.0001479,2]
[418933507,1774579845533,-151.0,0.0001479,2]
[418933508,1774579845542,-151.0,0.0001479,2]
[418933509,1774579845551,-151.0,0.0001479,2]
[418933510,1774579845560,-151.0,0.0001479,2]
[418933511,1774579845569,-151.0,0.0001479,2]
[418933512,1774579845578,-151.0,0.0001479,2]
[418933513,1774579845587,-151.0,0.0001479,2]
[418933514,1774579845597,-1000.0,0.0001479,2]
[418933515,1774579845606,-151.0,0.00014847,2]
[418933516,1774579845615,-151.0,0.00014847,2]
[418933517,1774579845624,-151.0,0.0001485,2]
[418933518,1774579845633,-151.0,0.0001485,2]
[418933519,1774579845642,-151.0,0.0001485,2]
[418933520,1774579845652,-500.0,0.00014873,2]
[418933521,1774579845663,-204.83784,0.00014875,2]
[418933522,1774579845674,-204.83784,0.00014875,2]
[418933523,1774579845683,-151.0,0.00014878,2]
[418933524,1774579845692,-1523.0,0.00014878,2]
[418933525,1774579845702,-151.0,0.00014878,2]
[418933526,1774579845711,-151.0,0.00014878,2]
[418933527,1774579845720,-163.75742817,0.00014878,2]
[418933528,1774579845729,-1523.0,0.00014878,2]
[418933529,1774579845738,-161.0,0.00014878,2]
[418933530,1774579845747,-165.32177173,0.00014878,2]
[418933531,1774579845756,-1523.0,0.00014878,2]
[418933532,1774579845765,-1523.0,0.00014878,2]
[418933533,1774579845775,-1566.9508983,0.00014878,2]
[418933534,1774579845784,-1011.80085497,0.00014878,2]
[418933535,1774579845793,-151.0,0.00014878,2]
[418933536,1774579845803,-500.0,0.00014878,2]
[418933537,1774579845812,-1018.33452,0.00014878,2]
[418933538,1774579845822,-151.0,0.00014888,2]
[418933539,1774579845831,-500.0,0.00014889,2]
[418933540,1774579845840,-500.0,0.00014889,2]
[418933541,1774579845851,-500.0,0.00014889,2]
[418933542,1774579845860,-500.0,0.00014889,2]
[418933543,1774579845869,-500.0,0.00014889,2]
[418933544,1774579845879,-152.69,0.00014978,2]
[418933545,1774579845887,-10861.3764316,0.0001499,2]
[418933546,1774579845896,-166.66,0.00015009,2]
[418933547,1774579845905,-2000.0,0.00015025,2]
[418933548,1774579845915,-1018.33452,0.00015078,2]
[418933549,1774579845925,-500.0,0.00015139,2]
[418933550,1774579845934,-500.0,0.00015139,2]
[418933551,1774579845944,-6561.2561105,0.00015139,2]
[418933552,1774579845953,-500.0,0.00015147,2]
[418933553,1774579845962,-500.0,0.00015147,2]
[418933554,1774579845971,-500.0,0.00015147,2]
[418933555,1774579845982,-500.0,0.00015147,2]
[418933556,1774579845993,-500.0,0.00015147,2]
[418933557,1774579846002,-500.0,0.00015147,2]
[418933558,1774579846012,-500.0,0.00015147,2]
[418933559,1774579846022,-500.0,0.00015147,2]
[418933560,1774579846031,-197.1775092,0.00015174,2]
[418933561,1774579846041,-21440.2076271,0.00015176,2]
[418933562,1774579846051,-10000.0,0.00015205,2]
[418933563,1774579846060,-635.8,0.00015234,2]
[418933564,1774579846069,-350.0,0.00015255,2]
[418933565,1774579846078,-1018.33453,0.00015278,2]
[418933566,1774579846088,-350.0,0.00015298,2]
[418933567,1774579846099,-2000.0,0.000153,2]
[418933568,1774579846109,-166.66,0.00015301,2]
[418933569,1774579846118,-1000.0,0.00015321,2]
[418933570,1774579846128,-1000.0,0.00015321,2]
[418933571,1774579846137,-1000.0,0.00015321,2]
[418933572,1774579846147,-200.0,0.00015366,2]
[418933573,1774579846157,-1000.0,0.00015421,2]
[418933574,1774579846166,-1018.33452,0.00015478,2]
[418933575,1774579846175,-514.64193597,0.000155,3]
[418933576,1774579846184,-1809.0,0.00015507,2]
[418933577,1774579846193,-1018.33453,0.00015678,2]
[418933578,1774579846202,-500.0,0.00015798,2]
[418933579,1774579846211,-468.17042859,0.00015798,2]
[418933580,1774579846220,-500.0,0.00015798,2]
[418933581,1774579846229,-500.0,0.00015798,2]
[418933582,1774579846238,-1002.39939295,0.00015868,2]
[418933583,1774579846248,-504.66323521,0.00015868,2]
[418933584,1774579846257,-1004.29344352,0.00015868,2]
[418933585,1774579846267,-1018.33452,0.00015878,2]
[418933586,1774579846277,-1809.0,0.00015895,2]
[418933587,1774579846286,-150.0,0.00015939,14]
[418933588,1774579846295,-502.1801686,0.00015968,2]
[418933589,1774579846304,-501.28713727,0.00015973,2]
[418933590,1774579846314,-500.5714565,0.00015973,2]
[418933591,1774579846323,-501.13744681,0.00015973,2]
[418933592,1774579846332,-501.7824104,0.00015973,2]
[418933594,1774579846341,-367.57403496,0.00015973,2]
[418933596,1774579846350,-500.66464506,0.00015973,2]
[418933597,1774579846359,-501.73046112,0.00015973,2]
[418933598,1774579846368,-610.60330757,0.00015973,2]
[418933599,1774579846377,-500.57979887,0.00015973,2]
[418933600,1774579846386,-501.87845091,0.00015973,2]
[418933601,1774579846395,-500.61543576,0.00015973,2]
[418933602,1774579846404,-501.24604432,0.00015973,2]
[418933603,1774579846413,-501.22625373,0.00015973,2]
[418933604,1774579846422,-500.54050411,0.00015973,2]
[418933605,1774579846431,-500.90567882,0.00015973,2]
[418933606,1774579846440,-500.45647503,0.00015973,2]
[418933607,1774579846449,-501.2144483,0.00015973,2]
[418933608,1774579846458,-501.8804352,0.00015973,2]
[418933609,1774579846467,-501.47726857,0.00015973,2]
[418933610,1774579846476,-554.36595998,0.00015999,2]
[418933611,1774579846485,-500.0,0.00015999,2]
[418933612,1774579846495,-500.0,0.00015999,2]
[418933613,1774579846503,-504.08991767,0.00015999,2]
[418933614,1774579846512,-500.0,0.00015999,2]
[418933615,1774579846521,-171.47449329,0.00015999,2]
[418933616,1774579846530,-500.0,0.00015999,2]
[418933617,1774579846539,-500.0,0.00015999,2]
[418933618,1774579846548,-239.90063684,0.00015999,2]
[418933619,1774579846558,-500.0,0.00015999,2]
[418933620,1774579846566,-500.0,0.00015999,2]
[418933621,1774579846575,-500.0,0.00015999,2]
[418933622,1774579846585,-500.0,0.00015999,2]
[418933624,1774579846594,-500.0,0.00015999,2]
[418933625,1774579846602,-500.0,0.00015999,2]
[418933627,1774579846611,-363.41884674,0.00015999,2]
[418933628,1774579846620,-500.0,0.00015999,2]
[418933629,1774579846629,-500.0,0.00015999,2]
[418933630,1774579846638,-160.55812532,0.00015999,2]
[418933631,1774579846648,-500.0,0.00015999,2]
[418933632,1774579846656,-155.54937523,0.00015999,2]
[418933633,1774579846666,-297.55593821,0.00015999,2]
[418933634,1774579846675,-299.9999999,0.00016,2]
[418933635,1774579846684,-135129.27385881,0.00016,2]
[418933636,1774579846888,-481.31318715,0.00016,2]
[418933637,1774579846900,-505.0,0.00016,2]
[418933638,1774579846914,-467.74106694,0.00016,2]
[418933639,1774579846925,-99812.29870157,0.00016,2]
[418933640,1774579846937,-12838.74624418,0.00016,2]
[418933641,1774579846949,-1782.29829608,0.00016,2]
[418933662,1774581032137,-819.88,0.00012345,2]
[418933663,1774581032147,-299.0,0.00012345,2]
[418933664,1774581032156,-511.0,0.00013111,2]
[418933665,1774581032166,-250.0,0.00013579,2]
[418933666,1774581032175,-200.0,0.00014413,2]
[418933667,1774581032184,-1000.0,0.00014676,2]
[418933668,1774581032194,-194.27,0.00014693,2]
[418933669,1774581032203,-165.18,0.00014696,2]
[418933670,1774581032212,-200.0,0.00014708,2]
[418933671,1774581032221,-1091.01,0.00014751,2]
[418933672,1774581032231,-1200.0,0.00014888,2]
[418933673,1774581032239,-332.57342666,0.00014889,2]
[418933674,1774581032265,-167.42657334,0.00014889,2]
[418933675,1774581032274,-362.70011708,0.00014889,2]
[418933676,1774581032286,-137.29988292,0.00014889,2]
[418933677,1774581032295,-199.22400901,0.00014889,2]
[418933678,1774581032304,-200.0,0.00014961,2]
[418933679,1774581032314,-167.09,0.00015105,2]
[418933680,1774581032323,-198.4218,0.000152,2]
[418933681,1774581032332,-350.0,0.00015333,2]
[418933682,1774581032342,-993.84556031,0.00015488,2]
[418933685,1774581032368,-97.16443969,0.00015488,2]
[418933687,1774581032378,-201.73257993,0.00015509,2]
[418933689,1774581032387,-196.07793493,0.00015546,2]
[418933692,1774581032398,-351.95748645,0.00015546,2]
[418933694,1774581038140,-381.31419262,0.00015546,2]
[418933695,1774581038154,-150.166386,0.00015546,2]
[418933696,1774581038163,-197.99,0.00015765,2]
[418933697,1774581038172,-500.0,0.00015798,2]
[418933698,1774581038182,-381.5772541,0.00015798,2]
[418933699,1774581038191,-150.0,0.00015812,2]
[418933700,1774581038199,-300.0,0.00015871,2]
[418933701,1774581038208,-500.0,0.00015872,2]
[418933702,1774581038218,-170.90378004,0.00015872,2]
[418933703,1774581038229,-329.09621996,0.00015872,2]
[418933704,1774581038238,-500.0,0.00015872,2]
[418933705,1774581038247,-500.0,0.00015872,2]
[418933706,1774581038256,-258.84044574,0.00015872,2]
[418933708,1774581041056,-241.15955426,0.00015872,2]
[418933709,1774581041065,-403.04635278,0.00015872,2]
[418933710,1774581041110,-96.95364722,0.00015872,2]
[418933711,1774581041120,-403.04635278,0.00015872,2]
[418933714,1774581041528,-96.95364722,0.00015872,2]
[418933715,1774581041538,-500.0,0.00015872,2]
[418933716,1774581041547,-412.32149961,0.00015872,2]
[418933717,1774581041556,-500.0,0.00015872,2]
[418933718,1774581041565,-500.0,0.00015872,2]
[418933719,1774581041574,-500.0,0.00015872,2]
[418933721,1774581041583,-158.34383098,0.00015872,2]
[418933723,1774581041592,-500.0,0.00015872,2]
[418933725,1774581041601,-500.0,0.00015872,2]
[418933726,1774581041610,-3635.7351493,0.00015873,2]
[418933727,1774581041621,-858.46552965,0.00015873,2]
[418933745,1774581043679,-193641.31682105,0.00015873,2]
[418933746,1774581043690,-151.0,0.00015897,2]
[418933747,1774581043700,-500.0,0.00015899,2]
[418933748,1774581043710,-500.0,0.00015899,2]
[418933749,1774581043720,-500.0,0.00015899,2]
[418933750,1774581043729,-500.0,0.00015899,2]
[418933751,1774581043738,-500.0,0.00015899,2]
[418933752,1774581043747,-500.0,0.00015899,2]
[418933753,1774581043757,-505.4071129,0.00015899,2]
[418933754,1774581043766,-500.0,0.00015899,2]
[418933755,1774581043775,-500.0,0.00015899,2]
[418933756,1774581043784,-632.05238003,0.00015899,2]
[418933757,1774581043793,-223.52219892,0.00015899,2]
[418933758,1774581043802,-185.23810799,0.00015899,2]
[418933759,1774581043812,-500.0,0.00015899,2]
[418933760,1774581043822,-577.80488274,0.00015899,2]
[418933761,1774581043832,-15000.5492,0.000159,2]
[418933762,1774581043841,-151.0,0.000159,2]
[418933763,1774581043851,-151.0,0.000159,2]
[418933764,1774581043861,-151.0,0.000159,2]
[418933765,1774581043870,-151.0,0.000159,2]
[418933766,1774581043879,-151.0,0.000159,2]
[418933767,1774581043889,-151.0,0.000159,2]
[418933768,1774581043899,-245.137287,0.000159,2]
[418933769,1774581043908,-245.137287,0.000159,2]
[418933770,1774581043917,-245.137287,0.000159,2]
[418933771,1774581043927,-245.137287,0.000159,2]
[418933772,1774581043936,-151.0,0.000159,2]
[418933773,1774581043946,-151.0,0.000159,2]
[418933774,1774581043955,-151.0,0.000159,2]
[418933775,1774581043964,-151.0,0.000159,2]
[418933776,1774581043974,-150.26946783,0.000159,2]
[418933777,1774581043983,-216329.95260273,0.000159,2]
[418933778,1774581043992,-330.3072,0.000159,2]
[418933779,1774581044002,-330.3072,0.000159,2]
[418933780,1774581044013,-330.3072,0.000159,2]
[418933781,1774581044023,-330.3072,0.000159,2]
[418933782,1774581044032,-198.685109,0.000159,2]
[418933783,1774581044041,-198.685109,0.000159,2]
[418933784,1774581044050,-198.685109,0.000159,2]
[418933785,1774581044061,-198.685109,0.000159,2]
[418933786,1774581044071,-150.0,0.000159,2]
[418933787,1774581044081,-151.0,0.000159,2]
[418933788,1774581044091,-500.23951253,0.00015973,2]
[418933789,1774581044101,-500.0,0.00015973,2]
[418933790,1774581044110,-500.0,0.00015973,2]
[418933792,1774581044296,-500.0,0.00015973,2]
[418933793,1774581044307,-500.0,0.00015973,2]
[418933794,1774581044316,-652.2556387,0.00015999,2]
[418933795,1774581044326,-562.1654109,0.00015999,2]
[418933796,1774581044335,-11979.0265279,0.00015999,2]
[418933797,1774581044345,-500.0,0.00015999,2]
[418933798,1774581044355,-1655.5682173,0.00015999,2]
[418933799,1774581044364,-1640.3140277,0.00015999,2]
[418933800,1774581044373,-151.0,0.00015999,2]
[418933801,1774581044382,-151.0,0.00015999,2]
[418933802,1774581044392,-36858.93828671,0.00016,2]
[418933803,1774581044404,-900.05641542,0.00016,2]
[418933804,1774581044423,-2817.20361522,0.00016,2]
[418933807,1774581046037,-500.0,0.00015899,2]
[418933808,1774581046047,-1109.71,0.000159,2]
[418933815,1774582232198,-250.0,0.00013,2]
[418933816,1774582232208,-511.0,0.00013111,2]
[418933817,1774582232217,-180.63,0.00013139,2]
[418933818,1774582232226,-147.29081842,0.00013871,2]
[418933819,1774582232254,-3.70918158,0.00013871,2]
[418933820,1774582232263,-151.0,0.00013875,2]
[418933821,1774582232272,-151.0,0.00013875,2]
[418933822,1774582232282,-166.66,0.00014287,2]
[418933823,1774582232291,-27.63081842,0.00014299,2]
[418933824,1774582233358,-1172.36918158,0.00014299,2]
[418933825,1774582233367,-150.0,0.00014299,2]
[418933826,1774582233377,-13.34134435,0.000143,2]
[418933849,1774582238351,-314.22865565,0.000143,2]
[418933850,1774582238360,-246.887156,0.000143,2]
[418933851,1774582238404,-53.112844,0.000143,2]
[418933852,1774582238413,-300.0,0.000143,2]
[418933853,1774582238423,-300.0,0.000143,2]
[418933854,1774582238432,-600.0,0.000143,2]
[418933855,1774582238443,-438.72865111,0.000143,2]
[418933856,1774582238511,-161.27134889,0.000143,2]
[418933857,1774582238520,-600.0,0.000143,2]
[418933858,1774582238529,-300.0,0.000143,2]
[418933859,1774582238538,-301.60456336,0.000143,2]
[418933860,1774582238547,-242.12408775,0.000143,2]
[418933861,1774582238566,-357.87591225,0.000143,2]
[418933862,1774582238576,-600.0,0.000143,2]
[418933863,1774582238586,-1044.13430243,0.000143,2]
[418933881,1774582240882,-335.38,0.000143,2]
[418933882,1774582241200,-1120.48569757,0.000143,2]
[418933883,1774582241210,-2500.0,0.000143,2]
[418933884,1774582241220,-2500.0,0.000143,2]
[418933885,1774582241232,-2500.0,0.000143,2]
[418933886,1774582241242,-2500.0,0.000143,2]
[418933887,1774582241251,-197.2179,0.000144,2]
[418933888,1774582241260,-85.11357843,0.00014424,2]
[418933898,1774582243689,-151.0,0.00014283,2]
[418933899,1774582243699,-114.88642157,0.00014424,2]
[418933900,1774582243709,-220.75888824,0.00014574,2]
[418933901,1774582243721,-106.81111176,0.00014574,2]
[418933902,1774582243730,-166.66,0.00014588,2]
[418933903,1774582243739,-26.52888824,0.00014848,2]
[418933905,1774582246482,-301.04111176,0.00014848,2]
[418933906,1774582246492,-166.66,0.00014889,2]
[418933907,1774582246502,-200.0,0.00014974,2]
[418933908,1774582246512,-300.0,0.00015,2]
[418933909,1774582246521,-1020.56162678,0.00015057,2]
[418933910,1774582246640,-7892.035199,0.00015057,2]
[418933914,1774582887679,171.99,7.5e-05,2]
[418933919,1774583431634,-511.0,0.00013111,2]
[418933920,1774583431644,-151.0,0.00014048,2]
[418933921,1774583431653,-151.0,0.00014053,2]
[418933922,1774583431662,-151.0,0.00014083,2]
[418933923,1774583431672,-150.0,0.00014421,2]
[418933924,1774583431682,-1200.0,0.00014421,2]
[418933925,1774583431692,-2500.0,0.00014422,2]
[418933926,1774583431703,-2500.0,0.00014422,2]